bitfinex-derivatives/quotes_SOLF0:USTF0_20260202
["timestamp","ask_amount","ask_price","bid_price","bid_amount"]
[1770013012052,10.85964474,99.264,99.174,141.3283]
[1770013012248,141.224,99.248,99.164,11.5279179]
[1770013012547,10.85964474,99.248,99.164,11.5279179]
[1770013013047,8.636e-05,99.249,99.207,161.8903179]
[1770013013242,8.636e-05,99.249,99.233,11.5279179]
[1770013013743,8.636e-05,99.249,99.235,11.5279179]
[1770013013942,10.71684294,99.354,99.284,141.1706]
[1770013014141,10.71684294,99.354,99.26,141.205]
[1770013014142,617.8103377,99.401,99.298,11.5279179]
[1770013014341,580.3814377,99.401,99.317,11.5279179]
[1770013014543,580.3814377,99.401,99.304,11.5279179]
[1770013014544,10.71684294,99.4,99.304,11.5279179]
[1770013014843,141.0307,99.384,99.304,11.5279179]
[1770013015147,9.0653,99.394,99.285,11.5279179]
[1770013015448,140.9963,99.408,99.271,402.7]
[1770013015449,42.3904253,99.44,99.337,11.5279179]
[1770013015651,140.915,99.465,99.321,141.1191]
[1770013015652,10.83268167,99.468,99.376,141.04]
[1770013015944,31.55774363,99.47,99.36,11.5279179]
[1770013015945,140.9485,99.442,99.36,11.5279179]
[1770013016153,1.75044138,99.47,99.395,141.0139]
[1770013016447,1646.14315291,99.496,99.387,11.5279179]
[1770013016644,140.9387,99.449,99.387,11.5279179]
[1770013016846,140.9897,99.413,99.336,11.5279179]
[1770013017040,140.9707,99.426,99.335,402.52]
[1770013017041,10.83787312,99.457,99.377,141.0392]
[1770013017243,10.83787312,99.487,99.4,141.0066]
[1770013017448,10.83787312,99.487,99.39,141.0203]
[1770013017449,8.636e-05,99.471,99.424,140.9717]
[1770013017642,1405.32460744,99.496,99.478,140.8954]
[1770013017844,1239.3080405,99.496,99.49,140.8783]
[1770013018044,1192.8453405,99.496,99.453,11.5279179]
[1770013018351,1192.8453405,99.496,99.454,140.9301]
[1770013018352,1072.0801405,99.496,99.454,140.9301]
[1770013018542,1013.4989405,99.496,99.454,140.9301]
[1770013018743,976.6071405,99.496,99.439,402.36]
[1770013018946,976.6071405,99.496,99.426,140.969]
[1770013019150,976.6071405,99.496,99.429,140.9657]
[1770013019349,918.4467405,99.496,99.467,140.9118]
[1770013019652,367.15368448,99.496,99.462,140.919]
[1770013019856,350.66278448,99.496,99.462,140.919]
[1770013020043,350.66278448,99.496,99.412,140.9899]
[1770013020449,140.8768,99.492,99.396,201.68]
[1770013020650,350.66278448,99.496,99.396,201.68]
[1770013020651,350.66278448,99.496,99.428,140.9666]
[1770013020850,350.66278448,99.496,99.396,201.68]
[1770013020851,301.86179417,99.496,99.448,140.9387]
[1770013021150,177.71719417,99.496,99.466,140.9134]
[1770013021350,93.87809417,99.496,99.486,140.884]
[1770013021548,217.00763842,99.628,99.488,140.8817]
[1770013021751,140.7425,99.587,99.489,402.02]
[1770013021947,76.32293842,99.596,99.491,140.8767]
[1770013022149,421.5462,99.748,99.49,402.02]
[1770013022150,140.5729,99.707,99.588,140.7403]
[1770013022350,140.5185,99.746,99.54,31.55774363]
[1770013022351,76.32293842,99.683,99.585,401.94]
[1770013022546,140.6229,99.672,99.585,401.94]
[1770013022749,140.6229,99.672,99.526,140.8279]
[1770013022750,76.21320881,99.653,99.541,401.94]
[1770013023249,140.6863,99.627,99.505,401.76]
[1770013023453,140.6863,99.627,99.48,31.55774363]
[1770013023454,140.7006,99.617,99.506,401.76]
[1770013023757,140.8021,99.545,99.437,401.76]
[1770013023962,140.8299,99.526,99.437,401.76]
[1770013024251,75.79079703,99.555,99.437,401.76]
[1770013024252,140.821,99.532,99.437,401.76]
[1770013024454,140.8605,99.504,99.437,401.76]
[1770013024649,140.8934,99.481,99.342,141.0894]
[1770013024852,75.78930493,99.564,99.447,140.9402]
[1770013025158,75.78930493,99.564,99.45,140.9351]
[1770013025358,75.78930493,99.554,99.448,401.64]
[1770013025558,140.8202,99.532,99.448,401.64]
[1770013025755,140.8683,99.498,99.363,344.44028928]
[1770013025964,140.8732,99.495,99.378,401.58]
[1770013026160,140.8582,99.506,99.389,141.0226]
[1770013026350,140.8093,99.54,99.378,401.58]
[1770013026351,75.29862037,99.543,99.429,140.9645]
[1770013026549,75.29862037,99.574,99.471,140.906]
[1770013027057,216.07928599,99.559,99.421,140.977]
[1770013027257,140.7508,99.581,99.324,423.3414]
[1770013027258,75.29688599,99.589,99.458,140.9234]
[1770013027556,75.29688599,99.589,99.429,140.9651]
[1770013027557,140.8132,99.537,99.407,140.9963]
[1770013027754,74.93831395,99.526,99.408,401.48]
[1770013027951,140.8274,99.527,99.408,401.48]
[1770013027952,140.8414,99.517,99.408,401.48]
[1770013028153,74.93831395,99.494,99.408,401.48]
[1770013028554,74.93650108,99.481,99.408,401.48]
[1770013028761,74.93650108,99.478,99.368,401.46]
[1770013028962,140.8574,99.506,99.375,141.0419]
[1770013029160,74.93650108,99.5,99.399,141.0079]
[1770013029374,74.93650108,99.567,99.449,140.9373]
[1770013029563,74.93650108,99.567,99.451,140.9342]
[1770013029858,74.95072239,99.494,99.37,401.38]
[1770013030064,140.8449,99.515,99.37,401.38]
[1770013030065,66.67157239,99.529,99.42,140.9777]
[1770013030255,66.67157239,99.529,99.411,140.9913]
[1770013030456,66.67157239,99.529,99.43,140.9631]
[1770013030660,66.67157239,99.529,99.37,824.5248]
[1770013030661,31.55774363,99.59,99.478,140.8958]
[1770013030964,66.64751797,99.565,99.472,401.38]
[1770013031165,66.64751797,99.555,99.472,401.38]
[1770013031466,140.8953,99.479,99.359,141.0648]
[1770013031665,66.12135222,99.479,99.368,141.0516]
[1770013031866,66.12135222,99.479,99.366,141.0549]
[1770013032360,66.12135222,99.479,99.35,401.36]
[1770013032361,66.12135222,99.455,99.35,401.36]
[1770013032566,66.12135222,99.455,99.357,141.0667]
[1770013032761,66.11952074,99.437,99.35,401.36]
[1770013032956,66.11952074,99.417,99.315,141.1277]
[1770013033156,66.11952074,99.417,99.305,141.1409]
[1770013033157,66.11952074,99.417,99.314,141.1278]
[1770013033456,66.01325196,99.447,99.335,141.0979]
[1770013033662,66.01325196,99.447,99.316,141.1253]
[1770013033663,97.57099559,99.48,99.387,141.0254]
[1770013033862,97.57099559,99.48,99.332,423.3072]
[1770013033863,31.55774363,99.51,99.414,140.9862]
[1770013034064,31.55774363,99.51,99.391,141.0186]
[1770013034065,66.01325196,99.509,99.402,141.0031]
[1770013034266,66.01325196,99.509,99.412,140.9892]
[1770013034463,66.01325196,99.509,99.422,140.9754]
[1770013034662,66.01325196,99.509,99.402,141.0031]
[1770013034862,66.01325196,99.509,99.412,140.9895]
[1770013035561,31.19722912,100.01,99.373,401.32]
[1770013035562,66.23879552,99.549,99.458,140.9246]
[1770013035768,66.23879552,99.549,99.47,140.907]
[1770013035962,66.23879552,99.581,99.504,140.8589]
[1770013036159,31.55774363,99.64,99.536,140.8139]
[1770013036460,66.23736674,99.629,99.516,140.8421]
[1770013036662,66.23736674,99.605,99.496,401.3]
[1770013036870,66.23736674,99.605,99.52,140.836]
[1770013037062,66.23736674,99.605,99.499,140.8654]
[1770013037263,66.23736674,99.667,99.565,140.7721]
[1770013037567,140.5587,99.718,99.607,140.7138]
[1770013037568,66.37984702,99.699,99.607,140.7138]
[1770013037770,66.37984702,99.699,99.592,140.7338]
[1770013038067,31.55774363,99.73,99.612,140.7055]
[1770013038270,31.55774363,99.73,99.592,140.734]
[1770013038468,66.37984702,99.702,99.609,140.7106]
[1770013038968,66.37857929,99.692,99.581,140.7501]
[1770013039264,66.37857929,99.692,99.603,140.7184]
[1770013039457,66.37857929,99.692,99.559,140.781]
[1770013039663,66.37857929,99.692,99.552,140.7903]
[1770013039664,66.62868234,99.668,99.527,140.8271]
[1770013039863,66.62868234,99.668,99.498,563.4704]
[1770013039864,66.62868234,99.668,99.584,140.7459]
[1770013040060,66.62868234,99.692,99.591,140.7366]
[1770013040368,66.62868234,99.692,99.584,140.7459]
[1770013040556,66.62868234,99.692,99.549,140.7958]
[1770013040557,66.62760484,99.648,99.514,140.8454]
[1770013040759,140.6548,99.649,99.482,401.1]
[1770013040760,31.55774363,99.59,99.482,401.1]
[1770013040958,66.62760484,99.589,99.484,140.888]
[1770013041366,66.62760484,99.559,99.444,140.9444]
[1770013041565,66.62760484,99.559,99.46,140.9218]
[1770013041768,66.62760484,99.559,99.461,140.9195]
[1770013042064,66.62760484,99.559,99.453,140.9314]
[1770013042065,66.62760484,99.559,99.466,140.9133]
[1770013042267,66.62760484,99.559,99.477,140.8976]
[1770013042465,66.62760484,99.559,99.487,140.8835]
[1770013042770,66.70649783,99.549,99.454,140.9302]
[1770013042966,66.70649783,99.549,99.464,140.9153]
[1770013043166,66.70649783,99.549,99.436,401.04]
[1770013043167,66.70649783,99.519,99.414,140.9859]
[1770013043367,66.70649783,99.489,99.389,400.98]
[1770013043569,66.70649783,99.489,99.395,141.0141]
[1770013043867,66.70649783,99.489,99.39,141.02]
[1770013044059,66.70649783,99.489,99.4,141.0059]
[1770013044263,66.70649783,99.489,99.391,141.0189]
[1770013044468,20.93979446,99.48,99.391,141.0189]
[1770013044768,140.8596,99.505,99.353,9.0689]
[1770013044769,20.93979446,99.45,99.353,9.0689]
[1770013044972,66.51394105,99.449,99.333,400.98]
[1770013045169,66.51394105,99.449,99.35,141.0768]
[1770013045367,20.93979446,99.48,99.376,141.0398]
[1770013045564,66.26781704,99.479,99.36,141.0624]
[1770013045770,66.26781704,99.449,99.333,141.101]
[1770013045966,66.26781704,99.449,99.336,401.02]
[1770013046373,66.26781704,99.449,99.338,141.0948]
[1770013046673,66.26781704,99.449,99.338,141.0945]
[1770013046873,66.26781704,99.449,99.349,141.0792]
[1770013047370,66.26781704,99.449,99.349,150.1485]
[1770013047570,66.26781704,99.449,99.339,141.0928]
[1770013047571,66.18133991,99.479,99.35,141.0775]
[1770013047766,66.18133991,99.47,99.339,141.0928]
[1770013047967,66.18133991,99.47,99.349,141.0788]
[1770013048167,66.18133991,99.47,99.343,141.0873]
[1770013048368,66.18133991,99.449,99.336,401.02]
[1770013048863,140.9441,99.445,99.336,401.02]
[1770013049074,66.18047194,99.442,99.336,401.02]
[1770013050068,87.08383144,99.42,99.303,602.18]
[1770013050268,140.9241,99.459,99.303,602.18]
[1770013050269,20.93979446,99.45,99.32,141.1198]
[1770013050465,66.14403698,99.454,99.341,141.0907]
[1770013050670,66.14403698,99.454,99.33,141.1061]
[1770013051068,140.9378,99.449,99.312,150.2037]
[1770013051265,66.14324833,99.434,99.286,141.1682]
[1770013051464,66.14324833,99.432,99.286,141.1682]
[1770013051665,20.93979446,99.42,99.29,124.0]
[1770013051878,66.17134047,99.419,99.304,141.143]
[1770013052172,66.17134047,99.45,99.348,141.0803]
[1770013052478,66.17134047,99.509,99.389,141.0224]
[1770013052666,66.17134047,99.509,99.377,141.0383]
[1770013052667,66.17134047,99.509,99.39,401.22]
[1770013053068,66.17064421,99.502,99.39,401.22]
[1770013053268,66.17064421,99.479,99.39,401.22]
[1770013053870,66.17064421,99.479,99.354,401.24]
[1770013054171,66.96031971,99.459,99.354,401.24]
[1770013055273,66.96031971,99.459,99.355,141.0708]
[1770013055481,66.96031971,99.459,99.354,401.24]
[1770013055971,66.95438896,99.49,99.359,141.0649]
[1770013056179,66.95438896,99.49,99.354,401.24]
[1770013056478,66.95438896,99.49,99.366,150.1224]
[1770013056778,66.95438896,99.49,99.379,141.0363]
[1770013056976,66.95438896,99.49,99.37,141.0489]
[1770013057377,140.8414,99.517,99.354,401.24]
[1770013057378,66.9539836,99.469,99.354,401.24]
[1770013057971,66.8938953,99.439,99.354,401.24]
[1770013058168,66.8938953,99.439,99.319,141.1206]
[1770013058571,66.89358092,99.409,99.298,9.074]
[1770013058783,66.89358092,99.409,99.287,141.1674]
[1770013058973,66.89358092,99.379,99.272,401.3]
[1770013059479,66.89358092,99.379,99.298,141.151]
[1770013059782,20.93979446,99.41,99.308,150.2102]
[1770013059783,87.77642706,99.41,99.308,150.2102]
[1770013059974,87.77642706,99.41,99.319,141.122]
[1770013060375,87.77642706,99.41,99.309,141.1361]
[1770013060573,87.77642706,99.41,99.313,141.1303]
[1770013060974,87.77642706,99.41,99.303,141.1444]
[1770013061179,66.83637134,99.409,99.313,9.0726]
[1770013061680,66.83637134,99.409,99.293,141.1585]
[1770013061681,66.83637134,99.409,99.315,150.1995]
[1770013061880,66.83637134,99.409,99.309,141.1362]
[1770013062576,66.83637134,99.409,99.309,150.2092]
[1770013062777,66.83637134,99.409,99.309,9.073]
[1770013063081,66.83637134,99.409,99.322,150.1892]
[1770013063277,66.92657037,99.499,99.383,141.0305]
[1770013063576,9.0571,99.484,99.356,141.0686]
[1770013063777,67.17565188,99.458,99.344,141.0863]
[1770013064280,67.17565188,99.444,99.333,141.101]
[1770013064481,67.17565188,99.444,99.336,141.097]
[1770013064676,67.17565188,99.444,99.353,141.0735]
[1770013065281,67.17565188,99.444,99.371,141.0482]
[1770013065480,67.17565188,99.444,99.348,141.0797]
[1770013065682,67.17565188,99.444,99.364,141.0574]
[1770013065879,67.17565188,99.444,99.347,141.0815]
[1770013066181,67.17565188,99.444,99.342,141.0881]
[1770013066584,67.21997618,99.429,99.324,141.1149]
[1770013066783,67.21992494,99.424,99.325,141.1128]
[1770013067174,67.21992494,99.424,99.339,9.0702]
[1770013067377,67.21992494,99.424,99.307,141.1379]
[1770013067378,67.21992494,99.424,99.313,141.1295]
[1770013067581,67.21992494,99.424,99.317,141.1237]
[1770013067778,67.21992494,99.424,99.144,23.7451645]
[1770013067779,67.11038456,99.369,99.258,141.2076]
[1770013067987,67.11038456,99.369,99.309,141.1353]
[1770013068180,20.93979446,99.4,99.302,141.1454]
[1770013068181,67.11038456,99.399,99.302,141.1454]
[1770013068377,67.11038456,99.399,99.312,150.2038]
[1770013068882,67.11038456,99.399,99.327,141.1106]
[1770013069081,67.11038456,99.399,99.312,141.1319]
[1770013069278,67.11038456,99.399,99.328,141.108]
[1770013069479,67.11038456,99.399,99.317,141.1248]
[1770013069681,67.11038456,99.399,99.297,141.153]
[1770013069883,20.93979446,99.43,99.341,141.0904]
[1770013070182,20.93979446,99.43,99.288,423.4977]
[1770013070183,67.21924791,99.369,99.281,141.1755]
[1770013070576,9.0677,99.368,99.282,9.0754]
[1770013070780,67.21931512,99.367,99.272,141.1883]
[1770013070980,67.21931512,99.367,99.283,141.1726]
[1770013071185,67.21931512,99.367,99.273,141.1867]
[1770013071485,67.21931512,99.339,99.242,141.2303]
[1770013071694,67.19526221,99.309,99.231,141.2468]
[1770013071879,67.19526221,99.309,99.231,141.2471]
[1770013072081,67.19526221,99.309,99.222,141.2592]
[1770013072278,67.19526221,99.309,99.224,141.2568]
[1770013072479,67.19526221,99.309,99.207,141.2808]
[1770013072681,67.19537277,99.299,99.204,141.2846]
[1770013072878,141.1847,99.275,99.182,9.0845]
[1770013073079,67.19537277,99.303,99.19,141.3043]
[1770013073283,141.1025,99.333,99.231,141.2472]
[1770013073883,141.1101,99.328,99.212,401.54]
[1770013074089,141.1588,99.294,99.212,401.54]
[1770013074287,141.1824,99.277,99.186,9.0842]
[1770013074487,20.93979446,99.27,99.174,141.3284]
[1770013074688,141.1447,99.304,99.163,401.6]
[1770013074892,141.1506,99.299,99.163,401.6]
[1770013075191,58.08782278,99.25,99.156,670.57997105]
[1770013075495,58.08782278,99.239,99.156,670.57997105]
[1770013075890,58.08782278,99.239,99.156,401.64]
[1770013076889,20.93979446,99.27,99.155,401.68]
[1770013077088,58.11692397,99.269,99.155,401.68]
[1770013077787,58.11692397,99.269,99.155,543.035]
[1770013077987,58.11692397,99.269,99.155,401.68]
[1770013078194,58.11692397,99.269,99.125,141.3976]
[1770013078394,58.11692397,99.269,99.134,401.8]
[1770013078597,58.11692397,99.269,99.135,150.4724]
[1770013079294,58.11692397,99.269,99.135,150.4721]
[1770013079600,58.11124667,99.298,99.156,141.3535]
[1770013080097,58.11124667,99.298,99.163,9.0863]
[1770013080296,58.11124667,99.298,99.164,141.3422]
[1770013080498,58.11124667,99.272,99.137,141.3811]
[1770013080688,58.11112513,99.261,99.131,9.0893]
[1770013081293,141.2146,99.254,99.119,141.406]
[1770013081491,162.13199446,99.27,99.113,9.0909]
[1770013081492,58.11112513,99.233,99.113,401.88]
[1770013081890,58.11112513,99.233,99.125,141.3975]
[1770013082298,58.11112513,99.233,99.135,141.3835]
[1770013082496,58.11112513,99.233,99.113,401.88]
[1770013082699,141.2517,99.228,99.099,201.42]
[1770013082902,58.08722082,99.219,99.099,201.42]
[1770013083396,171.25399446,99.24,99.099,201.42]
[1770013083397,58.08722082,99.217,99.099,201.42]
[1770013083600,20.93979446,99.21,99.099,201.42]
[1770013083802,58.15431327,99.209,99.099,201.42]
[1770013083997,58.15431327,99.237,99.106,141.4253]
[1770013084202,58.15431327,99.237,99.099,141.4353]
[1770013084497,58.15431327,99.237,99.089,401.9]
[1770013084498,58.15427414,99.2,99.089,401.9]
[1770013084702,20.93979446,99.21,99.089,401.9]
[1770013084703,58.15427414,99.196,99.089,401.9]
[1770013084902,141.2358,99.24,99.089,401.9]
[1770013084903,58.15427414,99.224,99.089,401.9]
[1770013085200,58.15427414,99.224,99.094,150.5338]
[1770013085401,58.15427414,99.224,99.089,401.9]
[1770013085402,58.15427414,99.224,99.11,141.4193]
[1770013085901,58.15427414,99.224,99.105,141.426]
[1770013086303,58.15427414,99.224,99.106,141.4251]
[1770013086504,58.15427414,99.224,99.09,141.4477]
[1770013086803,58.13619737,99.214,99.107,402.04]
[1770013087305,58.13619737,99.209,99.107,402.04]
[1770013088800,199.63800025,99.188,99.107,402.04]
[1770013088996,58.32920025,99.179,99.063,141.4859]
[1770013089196,141.3287,99.174,99.064,402.1]
[1770013089404,58.32920025,99.171,99.064,402.1]
[1770013090004,58.33197581,99.162,99.064,402.1]
[1770013090307,20.93979446,99.18,99.07,141.4758]
[1770013090510,58.33197581,99.191,99.079,141.4635]
[1770013090807,58.33197581,99.191,99.073,141.4719]
[1770013091004,58.33206327,99.189,99.064,402.1]
[1770013091201,58.33206327,99.178,99.064,402.1]
[1770013091400,58.33206327,99.172,99.064,402.1]
[1770013092003,58.33563065,99.167,99.064,402.1]
[1770013092205,58.33563065,99.119,98.929,18.2156]
[1770013092409,58.33563065,99.11,98.989,141.592]
[1770013092606,58.33563065,99.11,98.989,150.6943]
[1770013092807,58.33563065,99.11,98.977,141.6083]
[1770013092808,58.33563065,99.11,98.999,141.5782]
[1770013093108,58.33563065,99.11,99.007,141.5657]
[1770013093311,58.33563065,99.11,99.018,141.5502]
[1770013093510,58.33563065,99.11,99.008,543.8048]
[1770013093705,58.33563065,99.11,99.01,150.6626]
[1770013094116,58.33563065,99.11,99.01,9.1003]
[1770013094318,58.33563065,99.11,99.001,141.5753]
[1770013094511,58.33563065,99.11,99.026,141.5391]
[1770013094811,58.7165498,99.149,99.053,141.5004]
[1770013095211,58.7165498,99.149,99.041,141.518]
[1770013095416,58.7165498,99.149,99.031,141.5321]
[1770013095417,58.7165498,99.149,99.038,9.0978]
[1770013095718,58.82235802,99.179,99.068,141.479]
[1770013096517,58.82235802,99.179,99.097,141.438]
[1770013096816,58.82235802,99.179,99.1,9.0921]
[1770013097115,58.82235802,99.179,99.077,141.4663]
[1770013097315,58.82235802,99.179,99.068,141.479]
[1770013097316,58.82235802,99.179,99.074,141.4707]
[1770013097511,58.82235802,99.179,99.078,141.4651]
[1770013097704,58.82235802,99.179,99.079,141.4627]
[1770013097909,58.82235802,99.179,99.086,141.4526]
[1770013098108,58.82235802,99.179,99.091,141.4462]
[1770013098309,58.82235802,99.179,99.088,141.4497]
[1770013098514,58.94559491,99.206,99.104,150.5198]
[1770013098912,58.94559491,99.206,99.099,141.4352]
[1770013098913,58.94559491,99.206,99.131,150.4777]
[1770013099311,58.9457322,99.234,99.128,141.3932]
[1770013099618,58.9457322,99.234,99.136,141.3822]
[1770013099820,59.07240912,99.229,99.116,141.4098]
[1770013100007,59.07240912,99.225,99.116,9.0907]
[1770013100207,59.07240912,99.225,99.116,150.5011]
[1770013100418,59.07240912,99.225,99.116,9.0907]
[1770013100718,59.07240912,99.223,99.129,9.0894]
[1770013101308,59.07240912,99.223,99.129,150.4819]
[1770013101814,59.07240912,99.223,99.129,9.0894]
[1770013102318,59.07240912,99.223,99.143,9.0881]
[1770013102515,59.07850363,99.222,99.116,141.4099]
[1770013102710,59.07850363,99.222,99.145,9.088]
[1770013102911,59.07850363,99.222,99.145,141.3696]
[1770013103417,80.01845248,99.25,99.164,141.3416]
[1770013103616,80.01845248,99.25,99.156,141.3536]
[1770013103617,59.07865802,99.25,99.178,141.3214]
[1770013103913,59.07865802,99.25,99.166,141.3388]
[1770013104111,59.07865802,99.25,99.172,141.3305]
[1770013104310,59.07865802,99.25,99.179,141.3207]
[1770013104511,59.07865802,99.25,99.163,141.3436]
[1770013104823,59.08306251,99.279,99.192,141.3026]
[1770013105411,59.08306251,99.279,99.198,141.2932]
[1770013105613,59.08306251,99.279,99.19,141.3053]
[1770013105815,59.08306251,99.279,99.192,150.3863]
[1770013106213,59.08306251,99.279,99.192,9.0836]
[1770013106420,59.08306251,99.279,99.2,141.2913]
[1770013106615,59.08306251,99.279,99.205,9.0825]
[1770013107016,59.08306251,99.279,99.205,150.3664]
[1770013107214,59.06664584,99.305,99.219,150.3453]
[1770013107419,59.06664584,99.339,99.243,141.229]
[1770013107617,59.06664584,99.339,99.27,141.1912]
[1770013107920,59.06664584,99.339,99.25,141.2198]
[1770013108114,59.06664584,99.339,99.24,141.234]
[1770013108317,59.06664584,99.339,99.251,9.0783]
[1770013108514,59.0644773,99.366,99.277,141.1805]
[1770013108822,59.0644773,99.366,99.279,141.1778]
[1770013109025,59.0644773,99.366,99.279,150.2532]
[1770013109222,59.0644773,99.366,99.264,141.1999]
[1770013109518,141.0597,99.363,99.243,141.2297]
[1770013109716,59.09158484,99.346,99.237,141.2385]
[1770013110115,59.09158484,99.346,99.231,150.3272]
[1770013110116,59.09158484,99.336,99.231,150.3272]
[1770013110316,59.09158484,99.336,99.248,141.2222]
[1770013111218,90.61581931,99.35,99.265,9.0769]
[1770013111517,59.09179602,99.35,99.267,141.1947]
[1770013111722,31.52402329,99.38,99.287,141.1674]
[1770013111916,59.3283759,99.373,99.266,141.1962]
[1770013112116,59.3283759,99.369,99.248,141.2222]
[1770013112321,59.3283759,99.367,99.261,141.2044]
[1770013112623,141.045,99.374,99.235,141.2407]
[1770013112624,59.32854989,99.358,99.248,9.0785]
[1770013112818,59.32854989,99.355,99.248,9.0785]
[1770013113019,59.32854989,99.355,99.248,150.3013]
[1770013113418,59.32854989,99.343,99.235,141.2407]
[1770013114020,59.32854989,99.343,99.249,141.2214]
[1770013114521,59.32854989,99.343,99.266,141.1973]
[1770013114724,59.32854989,99.343,99.249,141.2214]
[1770013115020,59.32854989,99.343,99.233,141.244]
[1770013115217,59.32854989,99.343,99.248,141.2228]
[1770013115414,59.32854989,99.343,99.245,141.2265]
[1770013115620,59.32854989,99.343,99.246,141.2249]
[1770013115816,59.32854989,99.343,99.241,9.0792]
[1770013116717,59.32854989,99.343,99.246,150.3039]
[1770013117420,59.32854989,99.343,99.234,141.2418]
[1770013117625,140.9877,99.414,99.207,423.8402]
[1770013117626,59.14464872,99.37,99.302,141.146]
[1770013118022,59.14548445,99.396,99.324,141.114]
[1770013118415,59.14548445,99.396,99.32,9.0719]
[1770013118618,59.14548445,99.396,99.299,402.0]
[1770013119223,59.14548445,99.396,99.307,141.1389]
[1770013119426,59.14548445,99.396,99.302,141.1449]
[1770013119626,59.14548445,99.396,99.307,9.0731]
[1770013119823,59.14548445,99.396,99.32,141.1201]
[1770013120025,31.52402329,99.41,99.328,141.1086]
[1770013120225,59.14463332,99.409,99.319,9.072]
[1770013120717,59.14463332,99.409,99.328,9.0712]
[1770013121117,59.14490308,99.404,99.299,402.0]
[1770013121323,68.20930308,99.404,99.303,141.1445]
[1770013121525,68.20930308,99.404,99.299,402.0]
[1770013121526,68.20930308,99.404,99.305,141.1418]
[1770013121920,59.14490308,99.404,99.309,150.2089]
[1770013122122,140.9435,99.445,99.299,402.0]
[1770013122123,59.23134209,99.431,99.351,141.0757]
[1770013122423,59.23134209,99.431,99.338,141.0945]
[1770013122927,59.23134209,99.431,99.249,10.06]
[1770013122928,59.23134209,99.431,99.349,141.0783]
[1770013123228,59.23134209,99.431,99.351,9.0691]
[1770013123424,59.23134209,99.431,99.325,141.1128]
[1770013123627,59.23134209,99.431,99.326,141.1108]
[1770013124226,59.23134209,99.431,99.265,30.2]
[1770013124227,59.22884408,99.409,99.295,141.155]
[1770013124527,59.22884408,99.397,99.294,141.1568]
[1770013124723,59.22884408,99.397,99.304,141.1424]
[1770013124925,59.22884408,99.397,99.305,141.1419]
[1770013125231,59.22884408,99.397,99.297,141.1526]
[1770013125427,59.22884408,99.397,99.321,141.1184]
[1770013126022,59.22884408,99.397,99.324,141.1146]
[1770013126223,59.22884408,99.397,99.32,141.1201]
[1770013126422,59.22884408,99.397,99.313,141.1292]
[1770013126627,59.22884408,99.397,99.328,141.1087]
[1770013126828,59.22884408,99.397,99.318,141.1228]
[1770013127021,31.52402329,99.41,99.339,141.0925]
[1770013127223,59.22867734,99.423,99.324,141.1139]
[1770013127526,31.52402329,99.44,99.354,141.0722]
[1770013127830,59.24526007,99.45,99.376,141.0409]
[1770013128030,59.24526007,99.45,99.365,141.0557]
[1770013128220,59.24526007,99.45,99.367,9.0677]
[1770013128627,59.24554692,99.425,99.324,9.0716]
[1770013128832,59.24554692,99.425,99.324,150.1865]
[1770013129029,59.24554692,99.421,99.317,401.72]
[1770013129225,59.24554692,99.409,99.317,401.72]
[1770013129522,59.24554692,99.409,99.319,141.1219]
[1770013129828,59.24554692,99.409,99.328,141.1086]
[1770013130226,59.24554692,99.409,99.335,9.0706]
[1770013130527,8.42614249,99.4,99.317,401.72]
[1770013130927,8.42614249,99.4,99.327,141.1105]
[1770013131128,67.68824259,99.4,99.317,401.72]
[1770013131324,8.42614249,99.38,99.317,401.72]
[1770013132128,59.18813784,99.359,99.273,141.1874]
[1770013132430,8.42614249,99.34,99.258,141.2077]
[1770013132631,8.42614249,99.34,99.262,9.0772]
[1770013132832,8.42614249,99.34,99.259,141.2069]
[1770013133225,8.42614249,99.34,99.261,150.2813]
[1770013133428,8.42614249,99.34,99.258,141.2077]
[1770013133633,8.42614249,99.34,99.269,141.193]
[1770013133830,8.42614249,99.34,99.262,9.0772]
[1770013134030,8.42614249,99.34,99.259,141.2067]